bitfinex/quotes_ETHUSD_20250422
["timestamp","ask_amount","ask_price","bid_price","bid_amount"]
[1745315448170,6.15136724,1625.7,1625.6,4.0135007]
[1745315448672,6.15059994,1625.9,1625.6,4.0135007]
[1745315448856,6.15059994,1625.9,1625.8,3.78659839]
[1745315449058,6.15059994,1625.9,1625.8,9.29959839]
[1745315449265,6.15059994,1625.9,1625.8,9.52530634]
[1745315449767,6.97739994,1625.9,1625.8,9.51830634]
[1745315450141,6.15059994,1625.9,1625.8,9.51830634]
[1745315450552,6.15059994,1625.9,1625.8,10.29340634]
[1745315452875,6.15059994,1625.9,1625.8,9.51830634]
[1745315453062,7.38068354,1625.9,1625.8,9.51830634]
[1745315456180,6.15059994,1625.9,1625.8,9.51830634]
[1745315464976,6.15043975,1625.9,1625.8,9.51830634]
[1745315466096,6.15043975,1625.9,1625.8,9.51730634]
[1745315466267,6.90913975,1625.9,1625.8,9.51730634]
[1745315466788,6.90913975,1625.9,1625.8,0.22570795]
[1745315466973,6.1511964,1625.7,1625.6,3.89908432]
[1745315467294,6.1511964,1625.7,1625.6,4.12140869]
[1745315469293,6.1511964,1625.7,1625.6,4.12140869]
[1745315471098,6.15064278,1625.9,1625.6,4.12140869]
[1745315471303,6.15064278,1625.9,1625.8,3.78659839]
[1745315471665,6.15064278,1625.9,1625.8,4.01170912]
[1745315473916,8.16422897,1625.9,1625.8,4.01170912]
[1745315474282,8.16422897,1625.9,1625.8,9.51670912]
[1745315474482,8.16422897,1625.9,1625.8,4.01170912]
[1745315475103,6.15064278,1625.9,1625.8,4.01170912]
[1745315476113,6.93414278,1625.9,1625.8,4.01170912]
[1745315477481,6.93414278,1625.9,1625.8,0.22511073]
[1745315478486,6.93414278,1625.9,1625.6,0.11248593]
[1745315478487,6.9346964,1625.7,1625.6,0.11248593]
[1745315478902,6.9346964,1625.7,1625.6,0.33640246]
[1745315479105,8.24326548,1625.7,1625.6,0.33640246]
[1745315480720,6.1511964,1625.7,1625.6,0.33640246]
[1745315482088,6.1511964,1625.7,1625.6,5.84040246]
[1745315485435,6.9709964,1625.7,1625.6,0.22391653]
[1745315487545,6.1511964,1625.7,1625.6,0.22391653]
[1745315488944,6.1511964,1625.7,1625.6,1.03841653]
[1745315489635,6.1511964,1625.7,1625.6,0.22391653]
[1745315489816,7.38141548,1625.7,1625.6,0.22391653]
[1745315490351,8.20121548,1625.7,1625.5,3.78659839]
[1745315490505,6.15763546,1624.0,1623.9,12.78680868]
[1745315490690,6.15839389,1623.8,1623.7,13.86189428]
[1745315490891,6.15839389,1623.8,1623.7,17.76111023]
[1745315491328,6.15839389,1623.8,1623.7,13.97451184]
[1745315491902,6.15839389,1623.8,1623.7,13.86189428]
[1745315493834,6.1591525,1623.6,1623.5,3.78659839]
[1745315496409,6.15896553,1623.7,1623.5,3.78659839]
[1745315497273,6.15820704,1623.9,1623.6,0.8145]
[1745315497550,6.15820704,1623.9,1623.7,9.29459839]
[1745315497699,12.31653372,1623.9,1623.7,9.29459839]
[1745315498100,12.31653372,1623.9,1623.8,0.2079638]
[1745315498101,6.15820704,1623.9,1623.8,0.2079638]
[1745315498956,6.8998,1624.2,1623.8,0.2079638]
[1745315499148,6.1574964,1624.1,1623.8,0.2079638]
[1745315499307,6.15708002,1624.2,1624.1,3.78659839]
[1745315499938,6.15708002,1624.2,1624.1,3.99456219]
[1745315501917,6.15674436,1624.3,1624.1,3.99456219]
[1745315502237,6.15634162,1624.4,1624.1,3.99456219]
[1745315502443,6.15634162,1624.4,1624.3,3.78659839]
[1745315502605,6.15599139,1624.5,1624.3,3.78659839]
[1745315503143,6.15599139,1624.5,1624.4,0.22390281]
[1745315503435,6.15611918,1624.4,1624.3,3.78659839]
[1745315507622,6.15599139,1624.5,1624.3,3.78659839]
[1745315507822,6.15520833,1624.7,1624.4,0.8229]
[1745315508137,6.15536131,1624.6,1624.5,9.29559839]
[1745315509332,12.31056736,1624.7,1624.5,9.29559839]
[1745315509533,6.15520833,1624.7,1624.5,9.29559839]
[1745315509843,6.15536131,1624.6,1624.5,9.29559839]
[1745315514233,8.1716129,1624.6,1624.5,9.29559839]
[1745315514433,8.1716129,1624.6,1624.5,5.509]
[1745315514974,6.15574022,1624.5,1624.4,0.11256903]
[1745315521670,6.15611918,1624.4,1624.3,3.78659839]
[1745315524750,6.15611918,1624.4,1624.3,4.00002998]
[1745315533066,6.15611918,1624.4,1624.3,0.21343159]
[1745315534772,6.15574022,1624.5,1624.3,0.21343159]
[1745315535077,6.15574022,1624.5,1624.4,3.78659839]
[1745315535372,6.15555419,1624.6,1624.4,3.78659839]
[1745315535552,6.15555419,1624.6,1624.4,3.99923258]
[1745315536365,0.7904,1624.4,1623.5,0.8118]
[1745315536577,6.15929525,1623.6,1623.5,0.8118]
[1745315537675,6.15975953,1623.5,1623.3,3.78659839]
[1745315537977,6.16029076,1623.3,1623.2,6.4478]
[1745315538175,6.16017988,1623.4,1623.2,6.4478]
[1745315538382,12.32040718,1623.4,1623.2,6.4478]
[1745315538972,6.16017988,1623.4,1623.2,6.4478]
[1745315539486,6.16029076,1623.3,1623.2,6.4478]
[1745315539978,6.16005155,1623.4,1623.2,6.4478]
[1745315541098,0.7904,1623.8,1623.2,6.4478]
[1745315541281,6.1595673,1623.5,1623.3,3.78659839]
[1745315542264,6.15991129,1623.4,1623.3,3.78659839]
[1745315542584,6.94882187,1623.8,1623.3,3.78659839]
[1745315542879,6.15968104,1623.5,1623.3,3.78659839]
[1745315543082,6.15991129,1623.4,1623.3,3.78659839]
[1745315543455,6.15968104,1623.5,1623.3,3.78659839]
[1745315543655,6.15991129,1623.4,1623.3,3.78659839]
[1745315544086,6.15991129,1623.4,1623.3,3.94495126]
[1745315544676,7.61128418,1623.4,1623.3,0.15835287]
[1745315546188,7.61128418,1623.4,1623.3,1e-08]
[1745315546386,7.61128418,1623.4,1622.4,4.03053539]
[1745315546387,6.16332819,1622.5,1622.4,4.03053539]
[1745315546762,6.16332819,1622.5,1622.4,0.38735548]
[1745315546964,6.16332819,1622.5,1622.4,4.17395387]
[1745315547293,6.16298488,1622.6,1622.4,4.17395387]
[1745315547515,6.16277589,1622.7,1622.4,4.28666167]
[1745315547808,6.16256855,1622.7,1622.4,4.28666167]
[1745315548018,12.32544183,1622.7,1622.4,4.28666167]
[1745315548189,6.16256855,1622.7,1622.4,4.28666167]
[1745315548590,6.16256855,1622.7,1622.6,3.78659839]
[1745315549027,6.16235476,1622.8,1622.6,3.93001687]
[1745315549174,6.16197105,1622.9,1622.6,3.93001687]
[1745315549379,6.16197105,1622.9,1622.8,3.78659839]
[1745315549621,6.16157263,1623.0,1622.8,3.78659839]
[1745315549821,6.16157263,1623.0,1622.9,0.14341848]
[1745315550117,6.16125978,1623.1,1622.8,3.78659839]
[1745315550323,6.16125978,1623.1,1623.0,3.78659839]
[1745315550504,6.16083068,1623.2,1623.0,3.78659839]
[1745315550705,6.16104984,1623.1,1623.0,3.78659839]
[1745315551221,6.16051942,1623.3,1623.0,4.55999839]
[1745315551395,6.16051942,1623.3,1623.1,5.659]
[1745315552279,6.16067028,1623.2,1623.1,5.659]
[1745315553694,6.16067028,1623.2,1623.1,6.12007048]
[1745315553896,6.16067028,1623.2,1623.1,6.26348896]
[1745315554309,8.20568925,1623.2,1623.1,0.14341848]
[1745315554720,6.16142945,1623.0,1622.9,5.659]
[1745315555086,6.1618091,1622.9,1622.8,0.11268002]
[1745315555722,6.1618091,1622.9,1622.8,0.58093398]
[1745315556927,6.9747091,1622.9,1622.8,1e-08]
[1745315557113,6.164468,1622.2,1621.7,6.16607805]
[1745315557419,6.164468,1622.2,1621.6,5.659]
[1745315557622,6.164468,1622.2,1621.6,9.50146734]
[1745315557783,6.164468,1622.2,1621.8,3.84246734]
[1745315557982,6.164468,1622.2,1621.9,6.4324]
[1745315558213,6.164468,1622.2,1621.6,0.7734]
[1745315558407,6.164468,1622.2,1621.7,5.659]
[1745315559108,6.164468,1622.2,1621.9,5.66]
[1745315560013,6.164468,1622.2,1622.0,0.7836]
[1745315560214,6.164468,1622.2,1621.8,3.84246734]
[1745315560419,6.164468,1622.2,1622.0,5.66]
[1745315561916,6.942168,1622.2,1621.5,0.7836]
[1745315562087,6.942168,1622.2,1621.5,6.4446]
[1745315562488,6.942168,1622.2,1622.1,0.2408265]
[1745315562992,6.942168,1622.2,1621.6,5.661]
[1745315562993,6.16636862,1621.7,1621.6,5.661]
[1745315563325,6.16636862,1621.7,1621.6,5.79009096]
[1745315566028,6.94406862,1621.7,1621.6,0.12909096]
[1745315566192,6.16791026,1621.3,1621.2,0.7836]
[1745315566527,6.16773502,1621.4,1621.2,0.92754481]
[1745315567213,12.33475632,1621.5,1621.2,0.92754481]
[1745315567413,6.16753646,1621.4,1621.2,0.92754481]
[1745315567924,6.16753646,1621.4,1621.3,5.663]
[1745315568321,6.16753646,1621.4,1621.3,5.80874101]
[1745315568924,6.16732645,1621.5,1621.3,5.80874101]
[1745315569224,6.1665541,1621.7,1621.4,6.16744268]
[1745315569403,6.1665541,1621.7,1621.5,0.14554141]
[1745315569722,6.16677935,1621.6,1621.5,0.14554141]
[1745315570507,6.1665541,1621.7,1621.5,0.14554141]
[1745315572040,12.33320851,1621.7,1621.5,0.14554141]
[1745315572338,6.1665541,1621.7,1621.5,0.14554141]
[1745315572635,6.16641221,1621.7,1621.5,0.14554141]
[1745315573298,6.16674888,1621.6,1621.5,0.14554141]
[1745315573839,6.16641221,1621.7,1621.5,0.14554141]
[1745315574402,6.16674888,1621.6,1621.5,0.14554141]
[1745315575333,6.16641221,1621.7,1621.5,0.14554141]
[1745315575499,6.16674888,1621.6,1621.5,0.14554141]
[1745315575932,6.16641221,1621.7,1621.5,0.14554141]
[1745315576146,6.16619759,1621.8,1621.5,0.14554141]
[1745315576340,6.1658125,1621.9,1621.5,3.98800875]
[1745315576640,6.16601809,1621.8,1621.5,10.15496865]
[1745315576942,6.16539415,1622.0,1621.6,6.95945144]
[1745315577238,6.16539415,1622.0,1621.7,9.69546734]
[1745315577442,6.16539415,1622.0,1621.8,0.14554141]
[1745315578122,6.16530378,1622.0,1621.8,0.14554141]
[1745315579416,6.16560823,1621.9,1621.8,0.14554141]
[1745315579657,6.16530378,1622.0,1621.8,5.99854141]
[1745315580018,6.16560823,1621.9,1621.8,5.99854141]
[1745315580317,6.16530378,1622.0,1621.8,5.99854141]
[1745315580516,12.33083721,1622.0,1621.8,5.99854141]
[1745315580717,6.16560823,1621.9,1621.8,5.99854141]
[1745315581557,6.16530378,1622.0,1621.8,5.99854141]
[1745315581883,6.16470325,1622.2,1621.9,4.63536734]
[1745315582046,6.16423884,1622.3,1622.0,0.14244891]
[1745315582572,12.32862076,1622.3,1622.0,0.14244891]
[1745315582884,6.16458423,1622.2,1622.0,0.61393237]
[1745315583255,6.16423884,1622.3,1622.0,0.61393237]
[1745315583256,6.16423884,1622.3,1622.0,0.14244891]
[1745315583646,6.16393279,1622.4,1622.0,6.30751116]
[1745315583843,6.16421409,1622.3,1622.1,3.84246734]
[1745315584045,6.16421409,1622.3,1622.2,5.853]
[1745315584364,6.16421409,1622.3,1622.2,5.99544891]
[1745315588238,7.39702878,1622.3,1622.2,5.99544891]
[1745315588443,8.15612878,1622.3,1622.2,5.99544891]
[1745315593086,6.16393279,1622.4,1622.2,9.83791625]
[1745315593245,6.16357238,1622.5,1622.3,3.25501575]
[1745315593446,3.25501575,1622.4,1621.2,0.8241]
[1745315593745,6.1660573,1621.8,1621.7,3.25501575]
[1745315593940,6.1657697,1621.9,1621.7,3.25501575]
[1745315594379,6.1657697,1621.9,1621.8,5.852]
[1745315595676,6.1657697,1621.9,1621.8,5.853]
[1745315596904,6.16540866,1622.0,1621.8,6.6771]
[1745315599094,12.33093936,1622.0,1621.8,6.6771]
[1745315599296,6.16540866,1622.0,1621.8,6.6771]
[1745315599619,7.39845267,1622.0,1621.8,5.853]
[1745315599782,6.16560823,1621.9,1621.8,5.853]
[1745315600181,6.16560823,1621.9,1621.8,6.30362077]
[1745315603121,6.16507192,1622.1,1621.8,6.30362077]
[1745315603322,6.16470974,1622.2,1621.9,0.8241]
[1745315603847,12.32947359,1622.2,1621.9,0.8241]
[1745315604346,6.16470974,1622.2,1621.9,0.8241]
[1745315604547,12.32953642,1622.2,1621.9,0.8241]
[1745315604723,6.16470974,1622.2,1621.9,0.8241]
[1745315604927,6.1651086,1622.1,1621.9,0.8241]
[1745315605114,12.33024153,1622.1,1621.9,0.8241]
[1745315605338,12.33023649,1622.1,1621.9,0.8241]
[1745315605537,12.33022777,1622.1,1621.9,0.8241]
[1745315605740,6.16522811,1622.0,1621.9,0.8241]
[1745315606217,6.16560823,1621.9,1621.8,0.45062077]
[1745315606548,6.16560823,1621.9,1621.8,5.829]
[1745315610634,12.33073263,1622.0,1621.8,5.829]
[1745315610835,6.16522811,1622.0,1621.8,5.829]
[1745315611048,6.16560823,1621.9,1621.8,5.829]
[1745315611564,13.02391186,1622.0,1621.8,6.6359]
[1745315611770,6.16560823,1621.9,1621.8,6.6359]
[1745315613874,6.16522811,1622.0,1621.8,6.6359]
[1745315614044,6.16522811,1622.0,1621.8,9.89091575]
[1745315614840,6.16522811,1622.0,1621.8,10.35573986]
[1745315615035,6.16522811,1622.0,1621.8,9.54883986]
[1745315615871,6.16560823,1621.9,1621.8,6.29382411]
[1745315617474,6.16560823,1621.9,1621.8,5.829]
[1745315617683,6.16560823,1621.9,1621.6,4.06191575]
[1745315617684,6.16645819,1621.7,1621.5,5.829]
[1745315617841,12.33314151,1621.7,1621.5,5.829]
[1745315618183,6.16645819,1621.7,1621.5,5.829]
[1745315619582,6.16645819,1621.7,1621.5,9.08401575]
[1745315619940,6.16645819,1621.7,1621.5,5.829]
[1745315620884,12.33309139,1621.7,1621.5,5.829]
[1745315621389,6.16614393,1621.8,1621.5,5.829]
[1745315621544,6.16637158,1621.7,1621.5,5.829]
[1745315621975,6.16637158,1621.7,1621.5,6.2850948]
[1745315622287,6.16614176,1621.8,1621.5,9.84739943]
[1745315622442,12.33246638,1621.8,1621.5,9.84739943]
[1745315623168,6.16580094,1621.9,1621.6,0.7791]
[1745315623569,12.33170443,1621.9,1621.6,0.7791]
[1745315624290,6.16580094,1621.9,1621.7,3.25501575]
[1745315624501,6.16538315,1622.0,1621.7,3.25501575]
[1745315624804,6.16574682,1621.9,1621.7,3.25501575]
[1745315625000,6.16538315,1622.0,1621.7,3.25501575]
[1745315625560,12.33092726,1622.0,1621.8,5.829]
[1745315625861,6.16538315,1622.0,1621.8,5.829]
[1745315627075,6.16560823,1621.9,1621.8,5.829]
[1745315628675,6.16538315,1622.0,1621.8,5.829]
[1745315628879,6.16538315,1622.0,1621.9,3.25501575]
[1745315629195,6.16418808,1622.3,1621.9,4.03411575]
[1745315629372,6.16418808,1622.3,1622.1,3.25501575]
[1745315629768,6.164468,1622.2,1622.0,3.25501575]
[1745315630195,12.32931294,1622.2,1622.0,3.25501575]
[1745315630496,6.16484803,1622.1,1622.0,3.25501575]
[1745315630659,6.16484803,1622.1,1622.0,6.80996799]
[1745315630858,6.16417506,1622.3,1622.0,6.80996799]
[1745315631063,6.16395425,1622.4,1622.0,9.42005641]
[1745315631301,12.32795479,1622.4,1622.2,3.25501575]
[1745315631499,12.32795479,1622.4,1622.2,9.08401575]
[1745315631796,6.16408802,1622.3,1622.2,9.08401575]
[1745315632397,6.16408802,1622.3,1622.2,5.829]
[1745315633396,7.39689225,1622.3,1622.2,5.829]
[1745315633565,8.15489225,1622.3,1622.2,5.829]
[1745315633765,6.16395425,1622.4,1622.2,5.829]
[1745315633990,6.16408802,1622.3,1622.2,5.829]
[1745315643784,6.97248802,1622.3,1622.2,5.829]
[1745315644212,6.97248802,1622.3,1622.2,6.29803281]
[1745315646525,6.16408802,1622.3,1622.2,6.29803281]
[1745315650810,6.16388798,1622.4,1622.2,6.29803281]
[1745315651323,6.16408802,1622.3,1622.2,6.29803281]
[1745315654399,8.83417443,1622.3,1622.2,6.29803281]
[1745315655409,8.83417443,1622.3,1622.2,5.829]
[1745315655607,8.01327443,1622.3,1622.2,5.829]
[1745315655809,6.16408802,1622.3,1622.2,5.829]
[1745315657324,6.16388798,1622.4,1622.2,5.829]
[1745315657530,6.16388798,1622.4,1622.2,9.08401575]
[1745315658233,12.3278871,1622.4,1622.2,9.08401575]
[1745315658535,6.16408802,1622.3,1622.2,9.08401575]
[1745315658697,6.16388798,1622.4,1622.2,9.08401575]
[1745315659326,6.16347531,1622.5,1622.2,9.08401575]
[1745315659731,6.16385233,1622.4,1622.2,9.08401575]
[1745315660431,6.16408802,1622.3,1622.2,9.08401575]
[1745315666112,6.16385233,1622.4,1622.2,9.08401575]
[1745315666313,6.16350937,1622.5,1622.2,9.08401575]
[1745315666610,6.16350937,1622.5,1622.4,3.25501575]
[1745315668414,6.16318366,1622.6,1622.4,3.25501575]
[1745315668613,6.16318366,1622.6,1622.4,4.03271575]
[1745315669410,12.32646981,1622.6,1622.4,4.03271575]
[1745315670044,6.16318366,1622.6,1622.4,4.03271575]
[1745315671141,6.16332819,1622.5,1622.4,4.03271575]
[1745315671447,6.16332819,1622.5,1622.4,3.25501575]
[1745315672442,6.16332819,1622.5,1622.4,3.72240369]
[1745315672810,7.39597937,1622.5,1622.4,0.46738794]
[1745315673015,6.16370808,1622.4,1622.3,5.585]
[1745315674330,6.91750808,1622.4,1622.3,5.585]
[1745315678255,6.16516398,1622.1,1622.0,5.585]
[1745315680359,6.16516398,1622.1,1622.0,6.05004755]
[1745315687862,6.16516398,1622.1,1622.0,5.585]
[1745315689463,6.16516398,1622.1,1622.0,6.0519027]
[1745315692245,6.16516398,1622.1,1622.0,6.4073]
[1745315693471,6.16516398,1622.1,1622.0,5.585]
[1745315694041,6.16516398,1622.1,1622.0,6.03527709]
[1745315696682,6.16516398,1622.1,1622.0,5.585]
[1745315698888,6.16516398,1622.1,1622.0,6.0380663]
[1745315700565,6.16484803,1622.1,1622.0,9.0380663]
[1745315700883,6.1638785,1622.4,1622.1,3.0]
[1745315701088,6.16431911,1622.3,1622.2,6.25501575]
[1745315705695,6.16431911,1622.3,1622.2,6.70526511]
[1745315706075,6.16387482,1622.4,1622.2,6.70526511]
[1745315706274,6.16350369,1622.5,1622.2,6.70526511]
[1745315706474,6.16318454,1622.6,1622.5,3.0]
[1745315707259,6.16235951,1622.8,1622.5,3.0]
[1745315707463,6.1621888,1622.8,1622.7,3.0]
[1745315708264,12.32417415,1622.9,1622.7,3.0]
[1745315708598,6.16203782,1622.9,1622.8,8.78901575]
[1745315715778,7.39440186,1622.9,1622.8,5.534]
[1745315716278,6.16203782,1622.9,1622.8,5.534]
[1745315716478,6.16203782,1622.9,1622.8,8.534]
[1745315716995,6.16203782,1622.9,1622.8,9.00021695]
[1745315719200,6.16203782,1622.9,1622.8,8.534]
[1745315721603,6.16203782,1622.9,1622.8,3.0]
[1745315721804,7.39440186,1622.9,1622.8,8.532]
[1745315722100,8.14540186,1622.9,1622.8,8.532]
[1745315723304,6.16203782,1622.9,1622.8,8.532]
[1745315725911,6.16203782,1622.9,1622.8,9.00058555]
[1745315726414,6.16134144,1623.1,1622.9,3.0]
[1745315726583,6.16134144,1623.1,1623.0,3.25501575]
[1745315727383,6.16078743,1623.2,1623.0,7.08331575]
[1745315728016,12.32172898,1623.2,1623.0,7.08331575]
[1745315728179,6.16078743,1623.2,1623.0,7.39070492]
[1745315728380,6.16051482,1623.3,1623.0,7.39070492]
[1745315728381,6.16049383,1623.3,1623.0,7.39070492]
[1745315728712,6.16049383,1623.3,1623.2,6.25501575]
[1745315729009,6.16049383,1623.3,1623.2,11.78501575]
[1745315730414,8.16945003,1623.3,1623.2,11.78501575]
[1745315732819,8.16945003,1623.3,1623.2,6.25501575]
[1745315733023,8.16945003,1623.3,1623.2,8.529]
[1745315733179,6.93794984,1623.1,1623.0,5.529]
[1745315733383,6.16104984,1623.1,1623.0,8.78401575]
[1745315733599,6.16104984,1623.1,1623.0,11.78401575]
[1745315735359,7.39323925,1623.1,1623.0,11.78401575]
[1745315741154,6.16104984,1623.1,1623.0,12.57511575]
[1745315741333,6.16104984,1623.1,1623.0,11.78401575]
[1745315746040,6.16084423,1623.2,1623.1,3.0]
[1745315746246,6.16067028,1623.2,1623.1,3.0]
[1745315749749,6.16104984,1623.1,1623.0,9.57511575]
[1745315754055,6.16104984,1623.1,1623.0,8.78401575]
[1745315755850,6.16256855,1622.7,1622.6,0.788]
[1745315756066,6.16256855,1622.7,1622.6,5.529]
[1745315757055,6.16256855,1622.7,1622.6,8.98158182]
[1745315758821,6.16370808,1622.4,1622.3,4.04301575]
[1745315759021,6.16370808,1622.4,1622.3,5.527]
[1745315759226,6.16370808,1622.4,1622.3,8.527]
[1745315759573,6.16370808,1622.4,1622.3,5.527]
[1745315759861,6.16370808,1622.4,1622.3,8.527]
[1745315760264,6.16370808,1622.4,1622.3,8.99702787]
[1745315760575,6.16370808,1622.4,1622.3,8.527]
[1745315761862,6.16350026,1622.5,1622.4,3.0]
[1745315762061,6.16350026,1622.5,1622.4,6.25501575]
[1745315762474,6.16313752,1622.6,1622.4,6.25501575]
[1745315762768,6.16313752,1622.6,1622.5,3.0]
[1745315766170,6.16275896,1622.7,1622.6,0.788]
[1745315766368,6.16275896,1622.7,1622.6,4.04301575]
[1745315766571,6.1624231,1622.8,1622.6,7.04301575]
[1745315766867,6.1624231,1622.8,1622.7,8.528]
[1745315767167,6.16196011,1622.9,1622.7,8.528]
[1745315768470,6.1621888,1622.8,1622.7,8.528]
[1745315771969,6.16196011,1622.9,1622.7,8.528]
[1745315772142,6.16196011,1622.9,1622.8,3.25501575]
[1745315775182,6.16196011,1622.9,1622.8,6.25501575]
[1745315779697,6.16124475,1623.1,1622.9,3.0]
[1745315779989,6.16092809,1623.2,1623.1,3.0]
[1745315780177,6.16092809,1623.2,1623.1,8.527]
[1745315783387,6.16046939,1623.3,1623.1,9.3596]
[1745315783691,12.32033329,1623.4,1623.2,6.25501575]
[1745315785587,6.16029076,1623.3,1623.2,6.25501575]
[1745315787561,6.16029076,1623.3,1622.8,32.63194142]
[1745315787562,0.7689,1623.1,1622.2,0.8016]
[1745315787765,6.16349871,1622.5,1622.3,3.25501575]
[1745315788111,6.16361817,1622.5,1622.4,3.0]
[1745315788586,6.16361817,1622.5,1622.3,3.25501575]
[1745315788890,6.16361817,1622.5,1622.4,3.0]
[1745315789294,12.32651146,1622.6,1622.4,3.0]
[1745315789495,6.16332819,1622.5,1622.4,3.0]
[1745315789795,6.16320631,1622.6,1622.4,3.0]
[1745315789987,6.16332819,1622.5,1622.4,3.0]
[1745315790599,6.16320631,1622.6,1622.4,3.0]
[1745315790804,6.16320631,1622.6,1622.5,6.25501575]
[1745315791011,12.32557052,1622.7,1622.5,6.25501575]
[1745315791208,6.16268249,1622.7,1622.5,6.25501575]
[1745315791701,6.16268249,1622.7,1622.6,5.524]
[1745315791906,7.4720763,1622.7,1622.6,5.524]
[1745315792206,6.16268249,1622.7,1622.6,11.77901575]
[1745315792511,6.16216829,1622.9,1622.7,3.0]
[1745315792663,6.16230911,1622.8,1622.7,3.0]
[1745315792864,6.16230911,1622.8,1622.7,6.25501575]
[1745315795600,6.93120911,1622.8,1622.7,3.0]
[1745315802404,6.16230911,1622.8,1622.7,3.0]
[1745315802601,6.16230911,1622.8,1622.7,6.25501575]
[1745315803475,6.16230911,1622.8,1622.7,3.0]
[1745315804712,6.16332819,1622.5,1622.2,6.16431542]
[1745315804875,6.16317552,1622.6,1622.5,6.25501575]
[1745315806389,6.16317552,1622.6,1622.5,3.0]
[1745315806917,6.16280388,1622.7,1622.6,3.0]
[1745315807205,6.16256855,1622.7,1622.6,3.25501575]
[1745315807715,6.16198585,1622.9,1622.6,3.25501575]
[1745315807897,6.16198585,1622.9,1622.7,9.2765]
[1745315808213,6.1621888,1622.8,1622.7,8.524]
[1745315816104,6.1621888,1622.8,1622.7,5.524]
[1745315817431,6.1621888,1622.8,1622.7,8.524]
[1745315818746,7.24634266,1622.8,1622.7,5.524]
[1745315819042,7.24634266,1622.8,1622.5,3.25501575]
[1745315819043,6.16294835,1622.6,1622.4,8.77601575]
[1745315819242,6.16332819,1622.5,1622.4,8.77601575]
[1745315819431,6.16332819,1622.5,1622.4,11.77601575]
[1745315829947,6.16294835,1622.6,1622.4,11.77601575]
[1745315831514,12.32616321,1622.6,1622.4,11.77601575]
[1745315831917,12.32623658,1622.6,1622.4,11.77601575]
[1745315832329,6.16294835,1622.6,1622.4,11.77601575]
[1745315832841,6.16332819,1622.5,1622.4,11.77601575]
[1745315838350,6.16332819,1622.5,1622.4,8.521]
[1745315838526,6.16332819,1622.5,1622.4,11.77601575]
[1745315838727,6.16332819,1622.5,1622.4,8.521]
[1745315839137,8.08887873,1622.5,1622.4,3.0]
[1745315840049,8.85497873,1622.5,1622.4,3.0]
[1745315842452,6.93018802,1622.3,1622.1,8.77601575]
[1745315842656,6.164468,1622.2,1622.1,8.77601575]
[1745315842841,6.164468,1622.2,1622.1,11.77601575]
[1745315843155,6.16408802,1622.3,1622.1,11.77601575]
[1745315843334,6.16408802,1622.3,1622.1,12.57061575]
[1745315844134,6.16352201,1622.5,1622.3,0.7946]
[1745315844339,6.16310366,1622.6,1622.3,0.7946]
[1745315844340,6.16310366,1622.6,1622.4,3.0]
[1745315844538,6.16310366,1622.6,1622.5,8.77701575]
[1745315851230,8.21208827,1622.6,1622.5,5.522]
[1745315852531,6.97950366,1622.6,1622.5,5.522]
[1745315858746,6.97950366,1622.6,1622.5,8.522]
[1745315859647,6.97950366,1622.6,1622.5,5.522]
[1745315860766,6.16370808,1622.4,1622.3,6.25501575]
[1745315864063,6.16350906,1622.5,1622.3,7.04791575]
[1745315864253,6.16370808,1622.4,1622.3,4.04791575]
[1745315867442,12.32717606,1622.5,1622.3,4.04791575]
[1745315868279,6.16370808,1622.4,1622.3,4.04791575]
[1745315869465,6.16370808,1622.4,1622.3,9.56591575]
[1745315874290,6.16370808,1622.4,1622.3,8.77301575]
[1745315875281,6.16370808,1622.4,1622.3,7.18736907]
[1745315879565,6.16370808,1622.4,1622.3,5.513]
[1745315879763,6.16370808,1622.4,1622.3,7.18236907]
[1745315886100,6.97900808,1622.4,1622.3,7.18236907]
[1745315886403,8.90961058,1622.4,1622.3,7.18236907]
[1745315886809,6.16370808,1622.4,1622.3,7.18236907]
[1745315893797,6.16308161,1622.6,1622.3,7.18236907]
[1745315894003,6.16308161,1622.6,1622.5,1.66936907]
[1745315894713,6.16342416,1622.5,1622.4,1.66936907]
[1745315911879,6.16458632,1622.2,1622.0,5.507]
[1745315912074,6.16458632,1622.2,1622.1,1.66936907]
[1745315912701,6.16423187,1622.3,1622.1,1.66936907]
[1745315912884,6.16423187,1622.3,1622.2,1.66936907]
[1745315915061,6.16391624,1622.4,1622.2,1.66936907]
[1745315915257,6.16391624,1622.4,1622.3,1.66936907]
[1745315915603,6.16332761,1622.6,1622.3,1.66936907]
[1745315915770,6.16332761,1622.6,1622.2,7.05761366]
[1745315915771,6.16332761,1622.6,1622.5,1.66936907]
[1745315917995,6.16233532,1622.8,1622.5,3.33873814]
[1745315918183,6.16233532,1622.8,1622.7,1.66936907]
[1745315922710,6.16332819,1622.5,1622.4,5.507]
[1745315922901,6.16332819,1622.5,1622.4,10.17636907]
[1745315925320,6.16332819,1622.5,1622.4,11.76195877]
[1745315928387,6.16446806,1622.2,1622.0,4.08275877]
[1745315928593,6.16446806,1622.2,1622.1,3.0]
[1745315934306,6.16426735,1622.3,1622.2,3.55495224]
[1745315934494,6.16426735,1622.3,1622.2,3.25495877]
[1745315935229,6.16347003,1622.5,1622.2,6.25495877]
[1745315935434,6.16347003,1622.5,1622.1,3.8278]
[1745315935435,6.16347003,1622.5,1622.4,6.25495877]
[1745315939497,6.16312624,1622.6,1622.4,6.25495877]
[1745315939723,6.16332819,1622.5,1622.4,6.25495877]
[1745315940730,6.16312624,1622.6,1622.4,6.25495877]
[1745315941038,6.16332819,1622.5,1622.4,6.25495877]
[1745315943646,12.32638847,1622.6,1622.4,6.25495877]
[1745315943801,6.16312624,1622.6,1622.4,6.25495877]
[1745315944135,12.32639167,1622.6,1622.4,6.25495877]
[1745315944899,6.16332819,1622.5,1622.4,6.25495877]
[1745315945545,6.16312624,1622.6,1622.4,6.25495877]
[1745315946048,6.16272442,1622.7,1622.4,6.25495877]
[1745315946350,6.16272442,1622.7,1622.6,3.25495877]
[1745315948935,6.16233966,1622.8,1622.7,3.0]
[1745315951321,6.16233966,1622.8,1622.7,1.66867657]
[1745315953545,6.16233966,1622.8,1622.7,4.66867657]
[1745315956853,6.16233966,1622.8,1622.7,3.0]
[1745315957022,8.09142155,1622.8,1622.7,3.0]
[1745315959423,6.16233966,1622.8,1622.7,3.0]
[1745315960674,6.16233966,1622.8,1622.7,4.66867657]
[1745315964672,6.16198903,1622.9,1622.7,4.66867657]
[1745315964844,6.16198903,1622.9,1622.8,1.66867657]
[1745315968946,6.16091869,1623.2,1623.0,3.55495224]
[1745315969175,6.95574984,1623.1,1623.0,3.0]
[1745315969476,6.95574984,1623.1,1623.0,4.66867657]
[1745315969673,6.95574984,1623.1,1623.0,3.0]